[Event "Titled Tuesday Blitz August 08 Early 2023"]
[White "Cheer_Down"]
[Black "Yuruultei Batbaatar"]
[BlackFideId "4905962"]
[WhiteElo "2413"]
[BlackElo "2266"]
[Result "1-0"]
[Round "7"]
[TimeControl "180+1"]
[Date "2023.08.08"]
[WhiteClock "0:01:00"]
[BlackClock "0:00:00"]
[Board "177"]

1. e4 {[%clk 0:02:56]}  c5 {[%clk 0:02:59]} 2. Nf3 {[%clk 0:02:55]}  e6 {[%clk 0:02:58]} 3. d4 {[%clk 0:02:54]}  cxd4 {[%clk 0:02:59]} 4. Nxd4 {[%clk 0:02:55]}  Nc6 {[%clk 0:03:00]} 5. Bf4 {[%clk 0:02:52]}  a6 {[%clk 0:02:49]} 6. Nxc6 {[%clk 0:02:49]}  bxc6 {[%clk 0:02:49]} 7. c4 {[%clk 0:02:49]}  Bc5 {[%clk 0:02:29]} 8. Nc3 {[%clk 0:02:41]}  Qb6 {[%clk 0:02:20]} 9. Qd2 {[%clk 0:02:40]}  Qa5 {[%clk 0:02:00]} 10. Bd3 {[%clk 0:02:36]}  Nf6 {[%clk 0:01:55]} 11. O-O {[%clk 0:02:35]}  Bd4 {[%clk 0:01:38]} 12. Bd6 {[%clk 0:02:22]}  e5 {[%clk 0:01:30]} 13. b4 {[%clk 0:02:20]}  Qa3 {[%clk 0:01:27]} 14. Rac1 {[%clk 0:02:19]}  a5 {[%clk 0:01:18]} 15. Nb1 {[%clk 0:02:11]}  Qa4 {[%clk 0:01:09]} 16. b5 {[%clk 0:01:52]}  cxb5 {[%clk 0:00:29]} 17. cxb5 {[%clk 0:01:51]}  Bb7 {[%clk 0:00:27]} 18. Rc4 {[%clk 0:01:33]}  Nxe4 {[%clk 0:00:19]} 19. Rxa4 {[%clk 0:01:33]}  Nxd2 {[%clk 0:00:18]} 20. Nxd2 {[%clk 0:01:34]}  f6 {[%clk 0:00:17]} 21. Nb3 {[%clk 0:01:15]}  Bb6 {[%clk 0:00:16]} 22. Bc5 {[%clk 0:01:14]}  Bxc5 {[%clk 0:00:13]} 23. Nxc5 {[%clk 0:01:15]}  Bd5 {[%clk 0:00:10]} 24. Bf5 {[%clk 0:01:07]}  d6 {[%clk 0:00:09]} 25. Rd1 {[%clk 0:01:07]}  Bxg2 {[%clk 0:00:03]} 26. Ne6 {[%clk 0:01:03]}  Bf3 {[%clk 0:00:00]} 27. Rd3 {[%clk 0:01:00]} 1-0


[Site "https://www.chess.com"]

[Event "Titled Tuesday Blitz August 08 Early 2023"]
[White "Kazakov, Mikhail"]
[Black "Ruge, Edison"]
[WhiteFideId "14102749"]
[BlackFideId "4401000"]
[WhiteElo "2412"]
[BlackElo "2263"]
[Result "0-1"]
[Round "7"]
[TimeControl "180+1"]
[Date "2023.08.08"]
[WhiteClock "0:00:02"]
[BlackClock "0:01:18"]
[Board "178"]

1. d4 {[%clk 0:03:00]}  d5 {[%clk 0:02:59]} 2. c4 {[%clk 0:03:00]}  e5 {[%clk 0:02:59]} 3. dxe5 {[%clk 0:02:59]}  d4 {[%clk 0:03:00]} 4. Nf3 {[%clk 0:02:59]}  Nc6 {[%clk 0:03:01]} 5. a3 {[%clk 0:02:57]}  Bg4 {[%clk 0:03:01]} 6. Nbd2 {[%clk 0:02:54]}  a5 {[%clk 0:03:02]} 7. g3 {[%clk 0:02:51]}  a4 {[%clk 0:03:01]} 8. Bg2 {[%clk 0:02:49]}  Bc5 {[%clk 0:03:01]} 9. O-O {[%clk 0:02:48]}  Qd7 {[%clk 0:02:59]} 10. b4 {[%clk 0:02:47]}  axb3 {[%clk 0:02:55]} 11. Nxb3 {[%clk 0:02:47]}  Ba7 {[%clk 0:02:38]} 12. c5 {[%clk 0:02:40]}  Rd8 {[%clk 0:02:37]} 13. Bb2 {[%clk 0:02:32]}  d3 {[%clk 0:02:34]} 14. h3 {[%clk 0:02:13]}  Bxh3 {[%clk 0:02:28]} 15. Qxd3 {[%clk 0:01:58]}  Qxd3 {[%clk 0:02:26]} 16. exd3 {[%clk 0:01:59]}  Bxg2 {[%clk 0:02:24]} 17. Kxg2 {[%clk 0:02:00]}  Rxd3 {[%clk 0:02:23]} 18. Nbd4 {[%clk 0:01:57]}  Nge7 {[%clk 0:02:21]} 19. Rac1 {[%clk 0:01:48]}  O-O {[%clk 0:02:20]} 20. Nb5 {[%clk 0:01:43]}  Bb8 {[%clk 0:02:18]} 21. Ne1 {[%clk 0:01:17]}  Rb3 {[%clk 0:02:16]} 22. a4 {[%clk 0:01:03]}  Rxb2 {[%clk 0:02:16]} 23. Nd3 {[%clk 0:01:03]}  Ra2 {[%clk 0:02:10]} 24. Rc4 {[%clk 0:01:03]}  Rd8 {[%clk 0:02:07]} 25. Nc1 {[%clk 0:01:02]}  Rad2 {[%clk 0:02:00]} 26. Re1 {[%clk 0:00:58]}  Nd4 {[%clk 0:01:50]} 27. Nc3 {[%clk 0:00:38]}  Nec6 {[%clk 0:01:47]} 28. Ne4 {[%clk 0:00:33]}  Rc2 {[%clk 0:01:44]} 29. Rxc2 {[%clk 0:00:32]}  Nxc2 {[%clk 0:01:43]} 30. Re2 {[%clk 0:00:33]}  N2d4 {[%clk 0:01:40]} 31. Rd2 {[%clk 0:00:31]}  Ne6 {[%clk 0:01:40]} 32. Rxd8+ {[%clk 0:00:26]}  Nexd8 {[%clk 0:01:39]} 33. f4 {[%clk 0:00:27]}  h6 {[%clk 0:01:38]} 34. Kf3 {[%clk 0:00:26]}  Ne6 {[%clk 0:01:37]} 35. Nb3 {[%clk 0:00:23]}  Ned4+ {[%clk 0:01:36]} 36. Nxd4 {[%clk 0:00:23]}  Nxd4+ {[%clk 0:01:36]} 37. Ke3 {[%clk 0:00:24]}  Nc6 {[%clk 0:01:33]} 38. Kd3 {[%clk 0:00:23]}  Ne7 {[%clk 0:01:30]} 39. Kc4 {[%clk 0:00:20]}  Kf8 {[%clk 0:01:22]} 40. Kb5 {[%clk 0:00:20]}  Ke8 {[%clk 0:01:22]} 41. g4 {[%clk 0:00:19]}  Kd7 {[%clk 0:01:22]} 42. Nd2 {[%clk 0:00:18]}  c6+ {[%clk 0:01:22]} 43. Kc4 {[%clk 0:00:14]}  Nd5 {[%clk 0:01:20]} 44. f5 {[%clk 0:00:08]}  Bxe5 {[%clk 0:01:20]} 45. Nb3 {[%clk 0:00:09]}  Bc7 {[%clk 0:01:18]} 46. Nd4 {[%clk 0:00:09]}  Ne3+ {[%clk 0:01:18]} 47. Kd3 {[%clk 0:00:02]}  Nxg4 {[%clk 0:01:18]} 0-1


[Site "https://www.chess.com"]

[Event "Titled Tuesday Blitz August 08 Early 2023"]
[White "Bueno, Alfeu Junior Varela"]
[Black "Sarkar, Justin"]
[WhiteFideId "2108879"]
[BlackFideId "2010011"]
[WhiteElo "2402"]
[BlackElo "2242"]
[Result "1-0"]
[Round "7"]
[TimeControl "180+1"]
[Date "2023.08.08"]
[WhiteClock "0:01:00"]
[BlackClock "0:00:00"]
[Board "179"]

1. e4 {[%clk 0:02:42]}  e5 {[%clk 0:02:58]} 2. Nc3 {[%clk 0:02:42]}  Nf6 {[%clk 0:02:57]} 3. f4 {[%clk 0:02:42]}  d5 {[%clk 0:02:55]} 4. fxe5 {[%clk 0:02:43]}  Nxe4 {[%clk 0:02:55]} 5. Qf3 {[%clk 0:02:43]}  f5 {[%clk 0:02:48]} 6. d3 {[%clk 0:02:43]}  Nxc3 {[%clk 0:02:39]} 7. bxc3 {[%clk 0:02:43]}  d4 {[%clk 0:02:27]} 8. Qg3 {[%clk 0:02:44]}  Nc6 {[%clk 0:02:19]} 9. Be2 {[%clk 0:02:44]}  g6 {[%clk 0:01:59]} 10. Nf3 {[%clk 0:02:38]}  dxc3 {[%clk 0:01:53]} 11. Be3 {[%clk 0:02:38]}  Nb4 {[%clk 0:01:42]} 12. Bd1 {[%clk 0:02:33]}  Nd5 {[%clk 0:01:28]} 13. Bg5 {[%clk 0:02:29]}  Be7 {[%clk 0:01:26]} 14. O-O {[%clk 0:02:29]}  O-O {[%clk 0:01:10]} 15. Bh6 {[%clk 0:02:19]}  Re8 {[%clk 0:01:04]} 16. Kh1 {[%clk 0:02:08]}  Bf8 {[%clk 0:00:30]} 17. Bg5 {[%clk 0:01:59]}  Qd7 {[%clk 0:00:29]} 18. h4 {[%clk 0:01:58]}  Qg7 {[%clk 0:00:24]} 19. d4 {[%clk 0:01:52]}  Be6 {[%clk 0:00:20]} 20. Ne1 {[%clk 0:01:31]}  c5 {[%clk 0:00:18]} 21. dxc5 {[%clk 0:01:31]}  Bxc5 {[%clk 0:00:18]} 22. Nd3 {[%clk 0:01:32]}  Be7 {[%clk 0:00:13]} 23. Bc1 {[%clk 0:01:23]}  b6 {[%clk 0:00:12]} 24. Bf3 {[%clk 0:01:22]}  Rad8 {[%clk 0:00:12]} 25. a4 {[%clk 0:01:21]}  Nb4 {[%clk 0:00:09]} 26. Nxb4 {[%clk 0:01:04]}  Bxb4 {[%clk 0:00:08]} 27. Bc6 {[%clk 0:01:04]}  Rf8 {[%clk 0:00:05]} 28. Bg5 {[%clk 0:01:04]}  Rc8 {[%clk 0:00:05]} 29. Bf6 {[%clk 0:01:03]}  Rxf6 {[%clk 0:00:02]} 30. exf6 {[%clk 0:01:04]}  Qxf6 {[%clk 0:00:02]} 31. Bb7 {[%clk 0:01:02]}  Rd8 {[%clk 0:00:00]} 32. Rad1 {[%clk 0:01:00]} 1-0


[Site "https://www.chess.com"]

[Event "Titled Tuesday Blitz August 08 Early 2023"]
[White "Samaganova, Aleksandra"]
[Black "Avazkhonov, Alikhon"]
[WhiteFideId "13800221"]
[BlackFideId "14208504"]
[WhiteElo "2239"]
[BlackElo "2398"]
[Result "0-1"]
[Round "7"]
[TimeControl "180+1"]
[Date "2023.08.08"]
[WhiteClock "0:00:00"]
[BlackClock "0:00:03"]
[Board "180"]

1. c4 {[%clk 0:03:00]}  e5 {[%clk 0:02:54]} 2. Nc3 {[%clk 0:02:56]}  d6 {[%clk 0:02:55]} 3. g3 {[%clk 0:02:54]}  f5 {[%clk 0:02:54]} 4. Bg2 {[%clk 0:02:54]}  Nf6 {[%clk 0:02:55]} 5. e3 {[%clk 0:02:54]}  Be7 {[%clk 0:02:55]} 6. Nge2 {[%clk 0:02:54]}  O-O {[%clk 0:02:55]} 7. O-O {[%clk 0:02:53]}  Qe8 {[%clk 0:02:55]} 8. d3 {[%clk 0:02:42]}  c6 {[%clk 0:02:55]} 9. Rb1 {[%clk 0:02:41]}  Na6 {[%clk 0:02:55]} 10. b4 {[%clk 0:02:41]}  Nc7 {[%clk 0:02:56]} 11. b5 {[%clk 0:02:40]}  Ne6 {[%clk 0:02:56]} 12. a4 {[%clk 0:02:36]}  a5 {[%clk 0:02:42]} 13. bxc6 {[%clk 0:02:33]}  bxc6 {[%clk 0:02:43]} 14. Rb6 {[%clk 0:02:32]}  Bd7 {[%clk 0:02:40]} 15. f4 {[%clk 0:02:14]}  Qh5 {[%clk 0:02:33]} 16. Rb7 {[%clk 0:01:46]}  Nc5 {[%clk 0:02:17]} 17. Rb6 {[%clk 0:01:29]}  Bd8 {[%clk 0:02:12]} 18. Rb1 {[%clk 0:01:27]}  e4 {[%clk 0:02:11]} 19. dxe4 {[%clk 0:01:22]}  Ncxe4 {[%clk 0:02:09]} 20. Rb7 {[%clk 0:01:03]}  Bc8 {[%clk 0:02:06]} 21. Rb3 {[%clk 0:00:58]}  Be6 {[%clk 0:01:41]} 22. Nxe4 {[%clk 0:00:51]}  Nxe4 {[%clk 0:01:42]} 23. Qc2 {[%clk 0:00:44]}  Qf7 {[%clk 0:01:27]} 24. Ba3 {[%clk 0:00:32]}  Bxc4 {[%clk 0:01:21]} 25. Rb2 {[%clk 0:00:29]}  Bf6 {[%clk 0:01:17]} 26. Rb6 {[%clk 0:00:29]}  Bd5 {[%clk 0:01:15]} 27. Rfb1 {[%clk 0:00:24]}  Qe6 {[%clk 0:01:00]} 28. Nd4 {[%clk 0:00:14]}  Bxd4 {[%clk 0:01:00]} 29. exd4 {[%clk 0:00:15]}  Nf6 {[%clk 0:00:56]} 30. h3 {[%clk 0:00:10]}  Rfc8 {[%clk 0:00:51]} 31. Kh2 {[%clk 0:00:09]}  Bxg2 {[%clk 0:00:50]} 32. Qxg2 {[%clk 0:00:08]}  Ne4 {[%clk 0:00:50]} 33. Rb7 {[%clk 0:00:05]}  Rd8 {[%clk 0:00:29]} 34. Qb2 {[%clk 0:00:05]}  Rd7 {[%clk 0:00:25]} 35. Rb8+ {[%clk 0:00:05]}  Rxb8 {[%clk 0:00:24]} 36. Qxb8+ {[%clk 0:00:05]}  Kf7 {[%clk 0:00:25]} 37. Qb2 {[%clk 0:00:05]}  Qd5 {[%clk 0:00:22]} 38. Rc1 {[%clk 0:00:02]}  g5 {[%clk 0:00:14]} 39. Rc2 {[%clk 0:00:02]}  g4 {[%clk 0:00:13]} 40. h4 {[%clk 0:00:02]}  Nf6 {[%clk 0:00:09]} 41. Rc1 {[%clk 0:00:02]}  Re7 {[%clk 0:00:08]} 42. Rd1 {[%clk 0:00:02]}  Qf3 {[%clk 0:00:08]} 43. Rd2 {[%clk 0:00:02]}  Re1 {[%clk 0:00:05]} 44. Rg2 {[%clk 0:00:02]}  Qf1 {[%clk 0:00:04]} 45. Qa2+ {[%clk 0:00:01]}  Kg6 {[%clk 0:00:04]} 46. h5+ {[%clk 0:00:00]}  Kh6 {[%clk 0:00:03]} 0-1


[Site "https://www.chess.com"]

[Event "Titled Tuesday Blitz August 08 Early 2023"]
[White "Joshi, Pankaj"]
[Black "Dishman, Stephen"]
[WhiteFideId "5006210"]
[BlackFideId "403024"]
[WhiteElo "2239"]
[BlackElo "2394"]
[Result "0-1"]
[Round "7"]
[TimeControl "180+1"]
[Date "2023.08.08"]
[WhiteClock "0:00:15"]
[BlackClock "0:01:27"]
[Board "181"]

1. d4 {[%clk 0:03:00]}  d5 {[%clk 0:02:59]} 2. Nc3 {[%clk 0:03:00]}  Nf6 {[%clk 0:02:58]} 3. Bf4 {[%clk 0:02:59]}  e6 {[%clk 0:02:58]} 4. e3 {[%clk 0:02:58]}  a6 {[%clk 0:02:56]} 5. g4 {[%clk 0:02:58]}  Bb4 {[%clk 0:02:55]} 6. Bd3 {[%clk 0:02:54]}  c5 {[%clk 0:02:51]} 7. g5 {[%clk 0:02:52]}  Nfd7 {[%clk 0:02:50]} 8. h4 {[%clk 0:02:51]}  Nc6 {[%clk 0:02:49]} 9. Nf3 {[%clk 0:02:51]}  c4 {[%clk 0:02:40]} 10. Be2 {[%clk 0:02:44]}  b5 {[%clk 0:02:39]} 11. Ne5 {[%clk 0:02:25]}  Ndxe5 {[%clk 0:02:38]} 12. Bxe5 {[%clk 0:02:26]}  Nxe5 {[%clk 0:02:36]} 13. dxe5 {[%clk 0:02:27]}  Bb7 {[%clk 0:02:35]} 14. f4 {[%clk 0:02:22]}  Qb6 {[%clk 0:02:34]} 15. Qd2 {[%clk 0:02:20]}  Bc5 {[%clk 0:02:33]} 16. Rh3 {[%clk 0:02:14]}  d4 {[%clk 0:02:29]} 17. exd4 {[%clk 0:02:13]}  Bxd4 {[%clk 0:02:30]} 18. O-O-O {[%clk 0:02:12]}  O-O-O {[%clk 0:02:27]} 19. Bf3 {[%clk 0:02:02]}  Be3 {[%clk 0:02:24]} 20. Bxb7+ {[%clk 0:02:01]}  Kxb7 {[%clk 0:02:16]} 21. Qxe3 {[%clk 0:02:02]}  Rxd1+ {[%clk 0:02:13]} 22. Nxd1 {[%clk 0:01:59]}  Qa5 {[%clk 0:02:12]} 23. Nc3 {[%clk 0:01:55]}  Rd8 {[%clk 0:02:12]} 24. Rh1 {[%clk 0:01:53]}  b4 {[%clk 0:02:11]} 25. Rd1 {[%clk 0:01:37]}  bxc3 {[%clk 0:02:08]} 26. Rxd8 {[%clk 0:01:34]}  cxb2+ {[%clk 0:02:07]} 27. Kxb2 {[%clk 0:01:33]}  Qxd8 {[%clk 0:02:07]} 28. Qc5 {[%clk 0:01:28]}  Qb6+ {[%clk 0:02:03]} 29. Qxb6+ {[%clk 0:01:28]}  Kxb6 {[%clk 0:02:04]} 30. Kc3 {[%clk 0:01:25]}  Kc5 {[%clk 0:02:03]} 31. h5 {[%clk 0:01:11]}  g6 {[%clk 0:01:58]} 32. h6 {[%clk 0:00:58]}  a5 {[%clk 0:01:58]} 33. a4 {[%clk 0:00:48]}  Kd5 {[%clk 0:01:57]} 34. Kd2 {[%clk 0:00:49]}  Kd4 {[%clk 0:01:56]} 35. c3+ {[%clk 0:00:25]}  Ke4 {[%clk 0:01:55]} 36. Ke2 {[%clk 0:00:26]}  Kxf4 {[%clk 0:01:55]} 37. Kd2 {[%clk 0:00:24]}  Kxe5 {[%clk 0:01:55]} 38. Ke3 {[%clk 0:00:25]}  Kd5 {[%clk 0:01:53]} 39. Kf4 {[%clk 0:00:24]}  e5+ {[%clk 0:01:53]} 40. Ke3 {[%clk 0:00:24]}  Ke6 {[%clk 0:01:52]} 41. Ke4 {[%clk 0:00:25]}  f5+ {[%clk 0:01:52]} 42. gxf6 {[%clk 0:00:21]}  Kxf6 {[%clk 0:01:51]} 43. Kd5 {[%clk 0:00:22]}  g5 {[%clk 0:01:40]} 44. Kxc4 {[%clk 0:00:19]}  g4 {[%clk 0:01:40]} 45. Kb5 {[%clk 0:00:19]}  g3 {[%clk 0:01:39]} 46. c4 {[%clk 0:00:20]}  g2 {[%clk 0:01:39]} 47. c5 {[%clk 0:00:21]}  g1=Q {[%clk 0:01:39]} 48. c6 {[%clk 0:00:21]}  Qa7 {[%clk 0:01:38]} 49. Kc4 {[%clk 0:00:20]}  Ke6 {[%clk 0:01:36]} 50. Kb5 {[%clk 0:00:20]}  Kd6 {[%clk 0:01:33]} 51. Kc4 {[%clk 0:00:19]}  Kxc6 {[%clk 0:01:31]} 52. Kb3 {[%clk 0:00:19]}  Qd4 {[%clk 0:01:30]} 53. Ka3 {[%clk 0:00:20]}  Kc5 {[%clk 0:01:30]} 54. Ka2 {[%clk 0:00:19]}  Qd3 {[%clk 0:01:27]} 55. Ka1 {[%clk 0:00:15]}  Kb4 {[%clk 0:01:27]} 0-1


[Site "https://www.chess.com"]

[Event "Titled Tuesday Blitz August 08 Early 2023"]
[White "Luxama, Jacques Muller"]
[Black "Davidson, Kevin"]
[WhiteFideId "11900113"]
[BlackFideId "2056810"]
[WhiteElo "2214"]
[BlackElo "2388"]
[Result "1-0"]
[Round "7"]
[TimeControl "180+1"]
[Date "2023.08.08"]
[WhiteClock "0:00:59"]
[BlackClock "0:00:00"]
[Board "183"]

1. e4 {[%clk 0:02:59]}  c5 {[%clk 0:02:54]} 2. Nf3 {[%clk 0:02:58]}  d6 {[%clk 0:02:54]} 3. Bb5+ {[%clk 0:02:58]}  Nd7 {[%clk 0:02:51]} 4. O-O {[%clk 0:02:57]}  a6 {[%clk 0:02:49]} 5. Bxd7+ {[%clk 0:02:57]}  Bxd7 {[%clk 0:02:50]} 6. d4 {[%clk 0:02:58]}  cxd4 {[%clk 0:02:50]} 7. Qxd4 {[%clk 0:02:59]}  Nf6 {[%clk 0:02:50]} 8. c4 {[%clk 0:02:57]}  g6 {[%clk 0:02:48]} 9. Nc3 {[%clk 0:02:56]}  Bg7 {[%clk 0:02:48]} 10. Be3 {[%clk 0:02:56]}  O-O {[%clk 0:02:48]} 11. Qd2 {[%clk 0:02:56]}  Bc6 {[%clk 0:02:43]} 12. Qd3 {[%clk 0:02:45]}  b5 {[%clk 0:02:36]} 13. cxb5 {[%clk 0:02:43]}  axb5 {[%clk 0:02:37]} 14. a3 {[%clk 0:02:43]}  Qb8 {[%clk 0:02:27]} 15. Bd4 {[%clk 0:02:20]}  e5 {[%clk 0:02:15]} 16. Be3 {[%clk 0:02:16]}  b4 {[%clk 0:02:15]} 17. axb4 {[%clk 0:02:16]}  Qxb4 {[%clk 0:02:15]} 18. Rxa8 {[%clk 0:02:14]}  Rxa8 {[%clk 0:02:16]} 19. Nd2 {[%clk 0:01:56]}  Rd8 {[%clk 0:01:21]} 20. Nc4 {[%clk 0:01:54]}  Ng4 {[%clk 0:01:07]} 21. Bb6 {[%clk 0:01:51]}  Rd7 {[%clk 0:00:58]} 22. h3 {[%clk 0:01:46]}  Nf6 {[%clk 0:00:49]} 23. Ra1 {[%clk 0:01:40]}  d5 {[%clk 0:00:30]} 24. exd5 {[%clk 0:01:38]}  Nxd5 {[%clk 0:00:30]} 25. Nxd5 {[%clk 0:01:35]}  Rxd5 {[%clk 0:00:26]} 26. Qc3 {[%clk 0:01:11]}  Rb5 {[%clk 0:00:17]} 27. Be3 {[%clk 0:01:06]}  Bd5 {[%clk 0:00:09]} 28. Qxb4 {[%clk 0:01:02]}  Rxb4 {[%clk 0:00:10]} 29. Nb6 {[%clk 0:00:59]}  Bc6 {[%clk 0:00:09]} 30. Rc1 {[%clk 0:00:58]}  Bb7 {[%clk 0:00:04]} 31. Rc7 {[%clk 0:00:58]}  Ba6 {[%clk 0:00:04]} 32. Ra7 {[%clk 0:00:57]}  Bd3 {[%clk 0:00:02]} 33. Ra8+ {[%clk 0:00:56]}  Bf8 {[%clk 0:00:01]} 34. Rxf8+ {[%clk 0:00:57]}  Kxf8 {[%clk 0:00:01]} 35. Bc5+ {[%clk 0:00:57]}  Kg7 {[%clk 0:00:02]} 36. Bxb4 {[%clk 0:00:58]}  f5 {[%clk 0:00:02]} 37. Bc3 {[%clk 0:00:58]}  Kf6 {[%clk 0:00:00]} 38. f4 {[%clk 0:00:59]} 1-0


[Site "https://www.chess.com"]

[Event "Titled Tuesday Blitz August 08 Early 2023"]
[White "Falbo, Sandro"]
[Black "Castella Garcia, Fausto"]
[WhiteFideId "810444"]
[BlackFideId "3501922"]
[WhiteElo "2196"]
[BlackElo "2386"]
[Result "1-0"]
[Round "7"]
[TimeControl "180+1"]
[Date "2023.08.08"]
[WhiteClock "0:00:31"]
[BlackClock "0:00:00"]
[Board "184"]

1. c4 {[%clk 0:03:00]}  c5 {[%clk 0:02:59]} 2. Nc3 {[%clk 0:02:59]}  g6 {[%clk 0:02:59]} 3. g3 {[%clk 0:02:59]}  Bg7 {[%clk 0:03:00]} 4. Bg2 {[%clk 0:02:59]}  Nf6 {[%clk 0:03:01]} 5. e4 {[%clk 0:02:58]}  Nc6 {[%clk 0:02:59]} 6. Nge2 {[%clk 0:02:58]}  O-O {[%clk 0:02:53]} 7. O-O {[%clk 0:02:58]}  Ne8 {[%clk 0:02:53]} 8. d3 {[%clk 0:02:53]}  Nc7 {[%clk 0:02:52]} 9. Be3 {[%clk 0:02:53]}  Ne6 {[%clk 0:02:51]} 10. Rb1 {[%clk 0:02:45]}  Ned4 {[%clk 0:02:50]} 11. a3 {[%clk 0:02:37]}  a5 {[%clk 0:02:49]} 12. h3 {[%clk 0:02:33]}  d6 {[%clk 0:02:49]} 13. f4 {[%clk 0:02:27]}  Be6 {[%clk 0:02:37]} 14. Nd5 {[%clk 0:02:23]}  a4 {[%clk 0:02:25]} 15. Nec3 {[%clk 0:02:22]}  Bd7 {[%clk 0:02:13]} 16. Nxa4 {[%clk 0:02:13]}  Rxa4 {[%clk 0:01:52]} 17. Qxa4 {[%clk 0:02:12]}  Ne2+ {[%clk 0:01:43]} 18. Kh2 {[%clk 0:02:05]}  e6 {[%clk 0:01:43]} 19. Qd1 {[%clk 0:01:40]}  Ned4 {[%clk 0:01:19]} 20. Nc3 {[%clk 0:01:38]}  h5 {[%clk 0:01:19]} 21. Ne2 {[%clk 0:01:28]}  h4 {[%clk 0:01:15]} 22. g4 {[%clk 0:01:25]}  f5 {[%clk 0:01:15]} 23. exf5 {[%clk 0:01:20]}  gxf5 {[%clk 0:01:13]} 24. g5 {[%clk 0:01:19]}  Be8 {[%clk 0:01:05]} 25. Nxd4 {[%clk 0:01:18]}  Nxd4 {[%clk 0:01:03]} 26. b4 {[%clk 0:01:08]}  cxb4 {[%clk 0:01:02]} 27. axb4 {[%clk 0:01:08]}  e5 {[%clk 0:00:54]} 28. Bxb7 {[%clk 0:01:06]}  exf4 {[%clk 0:00:47]} 29. Bxf4 {[%clk 0:01:02]}  Ne6 {[%clk 0:00:47]} 30. Bd5 {[%clk 0:01:00]}  Bf7 {[%clk 0:00:47]} 31. Bd2 {[%clk 0:00:47]}  Be5+ {[%clk 0:00:45]} 32. Kh1 {[%clk 0:00:47]}  Kg7 {[%clk 0:00:32]} 33. Rxf5 {[%clk 0:00:45]}  Qe7 {[%clk 0:00:15]} 34. Qg4 {[%clk 0:00:36]}  Bg6 {[%clk 0:00:13]} 35. Rxe5 {[%clk 0:00:32]}  dxe5 {[%clk 0:00:00]} 36. Qxe6 {[%clk 0:00:31]} 1-0


[Site "https://www.chess.com"]

[Event "Titled Tuesday Blitz August 08 Early 2023"]
[White "Gu, Xiaobing"]
[Black "cycygogne"]
[WhiteFideId "8602611"]
[WhiteElo "2382"]
[BlackElo "2182"]
[Result "1-0"]
[Round "7"]
[TimeControl "180+1"]
[Date "2023.08.08"]
[WhiteClock "0:00:47"]
[BlackClock "0:00:56"]
[Board "187"]

1. e4 {[%clk 0:03:00]}  d5 {[%clk 0:02:58]} 2. exd5 {[%clk 0:02:59]}  Qxd5 {[%clk 0:02:59]} 3. Nc3 {[%clk 0:02:58]}  Qd6 {[%clk 0:03:00]} 4. d4 {[%clk 0:02:54]}  Nf6 {[%clk 0:02:59]} 5. Nf3 {[%clk 0:02:53]}  c6 {[%clk 0:02:58]} 6. Ne5 {[%clk 0:02:44]}  Qd8 {[%clk 0:02:39]} 7. Bc4 {[%clk 0:02:38]}  e6 {[%clk 0:02:38]} 8. O-O {[%clk 0:02:32]}  Nbd7 {[%clk 0:02:38]} 9. Qe2 {[%clk 0:02:28]}  Nxe5 {[%clk 0:02:37]} 10. dxe5 {[%clk 0:02:27]}  Nd5 {[%clk 0:02:37]} 11. Ne4 {[%clk 0:02:25]}  Be7 {[%clk 0:02:31]} 12. Qg4 {[%clk 0:02:19]}  g6 {[%clk 0:02:22]} 13. Bh6 {[%clk 0:02:14]}  Bd7 {[%clk 0:02:21]} 14. h4 {[%clk 0:01:48]}  Qc7 {[%clk 0:02:19]} 15. Bg5 {[%clk 0:01:35]}  Qxe5 {[%clk 0:02:07]} 16. Rae1 {[%clk 0:01:30]}  Qf5 {[%clk 0:01:54]} 17. Qg3 {[%clk 0:01:09]}  f6 {[%clk 0:01:34]} 18. Bxd5 {[%clk 0:00:59]}  cxd5 {[%clk 0:01:28]} 19. Bxf6 {[%clk 0:00:59]}  Rf8 {[%clk 0:01:06]} 20. Bxe7 {[%clk 0:00:55]}  Kxe7 {[%clk 0:01:06]} 21. Qd6+ {[%clk 0:00:51]}  Kd8 {[%clk 0:01:04]} 22. Nc5 {[%clk 0:00:51]}  Rf7 {[%clk 0:00:56]} 23. Nxe6+ {[%clk 0:00:47]} 1-0


[Site "https://www.chess.com"]

[Event "Titled Tuesday Blitz August 08 Early 2023"]
[White "Butti, Enrique"]
[Black "Luong Phuong Hanh"]
[WhiteFideId "3700470"]
[BlackFideId "12401013"]
[WhiteElo "2166"]
[BlackElo "2376"]
[Result "0-1"]
[Round "7"]
[TimeControl "180+1"]
[Date "2023.08.08"]
[WhiteClock "0:02:08"]
[BlackClock "0:02:08"]
[Board "189"]

1. d4 {[%clk 0:02:59]}  Nf6 {[%clk 0:02:58]} 2. c4 {[%clk 0:02:58]}  g6 {[%clk 0:02:57]} 3. Nc3 {[%clk 0:02:57]}  d5 {[%clk 0:02:57]} 4. cxd5 {[%clk 0:02:55]}  Nxd5 {[%clk 0:02:57]} 5. e4 {[%clk 0:02:56]}  Nxc3 {[%clk 0:02:57]} 6. bxc3 {[%clk 0:02:56]}  Bg7 {[%clk 0:02:58]} 7. Bc4 {[%clk 0:02:55]}  O-O {[%clk 0:02:57]} 8. Ne2 {[%clk 0:02:54]}  c5 {[%clk 0:02:58]} 9. O-O {[%clk 0:02:53]}  Nc6 {[%clk 0:02:57]} 10. Be3 {[%clk 0:02:52]}  Na5 {[%clk 0:02:57]} 11. Bd3 {[%clk 0:02:47]}  b6 {[%clk 0:02:56]} 12. Qd2 {[%clk 0:02:43]}  e5 {[%clk 0:02:55]} 13. d5 {[%clk 0:02:43]}  f5 {[%clk 0:02:53]} 14. f3 {[%clk 0:02:42]}  f4 {[%clk 0:02:30]} 15. Bf2 {[%clk 0:02:41]}  c4 {[%clk 0:02:26]} 16. Bc2 {[%clk 0:02:39]}  Qd6 {[%clk 0:02:13]} 17. Rfd1 {[%clk 0:02:26]}  g5 {[%clk 0:02:11]} 18. Qc1 {[%clk 0:02:23]}  g4 {[%clk 0:02:08]} 19. a4 {[%clk 0:02:21]}  gxf3 {[%clk 0:02:08]} 20. gxf3 {[%clk 0:02:08]}  Bh3 {[%clk 0:02:08]} 0-1


[Site "https://www.chess.com"]